bitfinex/quotes_ETHUSD_20260131
["timestamp","ask_amount","ask_price","bid_price","bid_amount"]
[1769860307152,13.62570461,2642.1,2640.6,14.32832844]
[1769860307357,0.1024,2642.4,2640.6,14.32832844]
[1769860307538,13.62570461,2642.5,2640.6,15.27508296]
[1769860307846,0.1024,2642.7,2640.8,12.8337636]
[1769860308415,13.72810461,2642.7,2640.8,12.8337636]
[1769860308627,13.72810461,2642.7,2641.0,12.8818209]
[1769860309729,13.72810461,2642.7,2641.0,12.38431622]
[1769860310767,13.72810461,2642.7,2641.1,12.8818209]
[1769860310963,13.72810461,2642.7,2640.9,3.87]
[1769860310964,0.1024,2642.9,2641.3,12.8818209]
[1769860311749,13.72810461,2642.9,2641.3,12.8818209]
[1769860311948,13.62570461,2642.9,2641.5,12.8818209]
[1769860312173,0.1024,2642.8,2641.5,12.8818209]
[1769860313170,0.1024,2642.8,2641.6,12.8818209]
[1769860313372,13.62570461,2642.9,2641.6,12.8818209]
[1769860313668,13.62570461,2642.9,2641.5,3.87]
[1769860313869,13.62570461,2643.0,2641.6,13.0381311]
[1769860314771,13.62570461,2643.0,2641.6,16.9081311]
[1769860314972,13.62570461,2643.0,2641.7,12.8818209]
[1769860316983,13.62570461,2643.0,2641.6,4.0263102]
[1769860317140,13.62570461,2642.8,2641.6,4.0263102]
[1769860318983,13.62570461,2642.8,2641.6,0.1563102]
[1769860319183,13.62570461,2642.8,2641.6,13.0381311]
[1769860320356,0.1024,2643.0,2641.6,13.0381311]
[1769860320652,13.72810461,2643.0,2641.6,13.0381311]
[1769860320850,13.72810461,2643.0,2641.8,12.8818209]
[1769860321542,0.001,2642.6,2641.7,1.30381311]
[1769860321746,13.62670461,2642.6,2641.6,0.1563102]
[1769860322179,13.62670461,2642.6,2641.6,13.0381311]
[1769860322356,13.62670461,2642.6,2641.6,0.1563102]
[1769860322557,13.62670461,2642.6,2641.3,12.8818209]
[1769860324670,13.62670461,2642.6,2641.4,3.87]
[1769860324864,13.62670461,2642.6,2641.5,12.8818209]
[1769860325241,0.001,2642.6,2641.5,12.8818209]
[1769860326850,13.4954407,2642.6,2641.5,12.8818209]
[1769860327148,13.4954407,2642.6,2641.6,1.67518209]
[1769860327693,13.4954407,2642.6,2641.3,3.87]
[1769860329492,13.4954407,2642.6,2641.2,0.794]
[1769860329793,13.4954407,2642.6,2641.2,0.644]
[1769860332267,13.4944407,2642.4,2641.2,0.644]
[1769860332473,13.4944407,2642.2,2641.2,0.644]
[1769860333582,13.4944407,2642.2,2641.5,0.0011]
[1769860334373,0.1024,2642.3,2641.5,0.0011]
[1769860334881,13.5968407,2642.3,2641.5,0.0011]
[1769860337311,0.001,2642.4,2641.5,12.72139715]
[1769860338408,13.4954407,2642.4,2641.5,0.0011]
[1769860338608,13.4954407,2642.4,2641.3,0.0011]
[1769860339104,13.4944407,2642.2,2641.3,0.0011]
[1769860346419,13.4944407,2642.2,2641.5,0.0011]
[1769860346621,13.4944407,2642.1,2641.5,0.0011]
[1769860346919,13.4954407,2642.0,2641.5,0.0011]
[1769860354176,13.4944407,2641.2,2640.2,0.0011]
[1769860354459,13.50581036,2641.5,2640.2,12.72139715]
[1769860354612,13.5968407,2641.4,2640.2,12.72139715]
[1769860355025,0.1024,2641.4,2640.2,12.72139715]
[1769860355443,0.1024,2641.3,2640.2,12.72139715]
[1769860357439,13.023323,2641.2,2640.2,12.72139715]
[1769860359151,13.023323,2641.2,2640.4,0.0011]
[1769860359361,13.023323,2641.2,2638.9,3.78942277]
[1769860359362,13.023323,2641.2,2638.8,0.0011]
[1769860359522,12.920923,2640.4,2639.1,0.0011]
[1769860359727,12.920923,2640.1,2639.1,0.0011]
[1769860359963,12.88394286,2639.9,2639.1,0.0011]
[1769860360169,12.88394286,2639.7,2639.1,0.0011]
[1769860360327,12.88394286,2639.7,2638.8,0.0011]
[1769860360657,12.88394286,2639.5,2638.8,0.0011]
[1769860361335,12.88394286,2639.3,2638.8,0.0011]
[1769860362343,12.88394286,2639.3,2638.5,0.0011]
[1769860362929,12.88394286,2639.1,2638.2,0.7951]
[1769860363156,12.88394286,2638.7,2638.0,0.0011]
[1769860363358,12.88394286,2638.7,2636.2,1.90321078]
[1769860363359,12.88394286,2637.8,2636.2,0.19721078]
[1769860363558,0.01136966,2637.4,2636.2,12.94414235]
[1769860363773,12.88394286,2638.3,2636.2,12.74693157]
[1769860363932,0.67038618,2638.2,2636.3,12.74693157]
[1769860364331,12.89531834,2638.0,2636.3,12.74693157]
[1769860364563,0.01137548,2637.8,2636.5,12.74693157]
[1769860365232,0.01137548,2637.8,2635.7,12.74693157]
[1769860365233,0.01137591,2637.1,2635.7,12.74693157]
[1769860365839,0.01137591,2637.5,2635.7,12.74693157]
[1769860366171,0.01137591,2637.5,2635.9,12.74693157]
[1769860366340,0.01137591,2637.5,2636.1,12.74693157]
[1769860367563,12.89531834,2637.8,2636.1,12.74693157]
[1769860367881,0.01137548,2637.8,2636.1,12.74693157]
[1769860368176,12.88394286,2638.1,2636.1,13.69530134]
[1769860368337,12.88394286,2638.1,2636.3,12.74693157]
[1769860368934,12.89532115,2638.1,2636.3,12.74693157]
[1769860370173,0.01137829,2638.1,2636.3,12.74693157]
[1769860370543,0.01137829,2638.1,2636.3,13.92879101]
[1769860370846,0.65901652,2638.2,2636.3,13.9287838]
[1769860371048,0.65901652,2638.2,2636.5,12.74693157]
[1769860371686,0.01137829,2638.0,2636.5,12.74693157]
[1769860371850,0.1024,2638.1,2636.5,12.74693157]
[1769860372400,0.01137829,2638.3,2636.5,12.74693157]
[1769860373858,12.89532115,2638.3,2636.5,12.74693157]
[1769860374077,12.88394286,2638.2,2636.7,12.74693157]
[1769860374283,12.88394286,2638.2,2636.8,13.54193157]
[1769860375476,0.01137829,2638.4,2636.8,13.54193157]
[1769860376678,0.1024,2638.5,2636.8,13.54193157]
[1769860376979,0.1024,2638.5,2637.0,12.74693157]
[1769860377182,0.11377829,2638.5,2637.0,12.74693157]
[1769860378694,0.01137829,2638.5,2637.0,12.74693157]
[1769860379196,12.88394286,2638.6,2637.0,12.74693157]
[1769860380294,0.31594571,2638.7,2637.0,12.74693157]
[1769860380596,0.31594571,2638.7,2636.9,2.30226745]
[1769860380597,0.31594571,2638.7,2637.2,12.74693157]
[1769860381284,13.19988857,2638.7,2637.2,12.74693157]
[1769860382470,0.30456742,2638.7,2637.2,12.74693157]
[1769860383061,13.18851028,2638.7,2637.2,12.74693157]
[1769860383791,0.30456742,2638.7,2637.4,12.74693157]
[1769860383999,0.30456742,2638.7,2637.6,12.74693157]
[1769860384601,12.88394286,2639.6,2637.7,12.74693157]
[1769860384753,12.88394286,2639.6,2637.6,12.74693157]
[1769860385772,12.88394286,2639.6,2637.8,12.74693157]
[1769860385975,12.88394286,2639.6,2638.0,12.74693157]
[1769860386266,12.88394286,2639.9,2638.0,12.74693157]
[1769860386589,12.88394286,2639.9,2638.2,12.74693157]
[1769860392719,12.88394286,2639.9,2638.2,13.69454617]
[1769860393002,12.88394286,2639.9,2638.2,12.74693157]
[1769860393196,12.88394286,2639.9,2638.4,13.21186139]
[1769860393392,0.01137829,2640.0,2638.4,13.21186139]
[1769860393997,12.68503001,2640.0,2638.4,13.21186139]
[1769860394699,12.68503001,2640.0,2638.5,13.21186139]
[1769860396608,0.001,2639.7,2638.5,13.21186139]
[1769860396909,0.001,2639.7,2638.7,13.21186139]
[1769860397095,0.001,2639.7,2638.7,14.00686139]
[1769860398383,12.67365172,2640.6,2638.8,13.21186139]
[1769860400716,12.67365172,2640.6,2638.9,13.21186139]
[1769860401724,12.67365172,2640.6,2638.9,14.15922184]
[1769860401906,12.67365172,2640.6,2639.1,13.21186139]
[1769860405219,0.29434728,2640.7,2639.1,13.21186139]
[1769860406397,0.29434728,2640.7,2639.1,14.15914036]
[1769860406598,12.967999,2640.7,2639.1,14.15914036]
[1769860408605,12.967999,2640.7,2639.3,13.21186139]
[1769860408828,12.67365172,2641.6,2639.9,13.21186139]
[1769860409002,12.52280605,2641.6,2640.0,13.21186139]
[1769860409339,12.52280605,2641.6,2640.2,13.21186139]
[1769860409504,12.3359959,2641.6,2640.4,13.21186139]
[1769860410691,12.3359959,2641.6,2640.1,15.32704753]
[1769860411003,0.01237829,2642.0,2640.2,14.74456614]
[1769860411004,12.67365172,2641.4,2640.2,14.74456614]
[1769860411210,12.67365172,2641.7,2640.2,14.74456614]
[1769860414008,12.67365172,2641.5,2640.2,1.53270475]
[1769860414208,12.67365172,2641.5,2640.1,14.00586139]
[1769860415324,12.67365172,2641.5,2640.1,0.794]
[1769860415693,12.67365172,2641.5,2640.1,14.00586139]
[1769860418432,12.96476534,2641.3,2639.6,14.20304116]
[1769860418732,12.96476534,2641.3,2639.7,16.57077498]
[1769860420629,12.96476534,2641.3,2639.8,3.992]
[1769860420933,12.96476534,2641.3,2639.7,16.57077498]
[1769860421531,12.96476534,2641.3,2639.9,0.0011]
[1769860421742,13.55326854,2641.3,2639.9,0.0011]
[1769860424347,13.55326854,2641.3,2639.9,3.8711]
[1769860431660,13.55326854,2641.3,2639.9,17.21488345]
[1769860433365,13.55326854,2641.3,2640.0,13.34378345]
[1769860433881,13.55326854,2640.1,2639.6,0.0011]
[1769860434037,13.55326854,2640.1,2639.0,13.34488345]
[1769860434436,0.01137829,2640.2,2639.0,13.34488345]
[1769860434437,13.55326854,2639.9,2639.0,13.34488345]
[1769860437555,0.01137829,2640.0,2638.8,0.0011]
[1769860437556,13.55326854,2639.6,2638.8,0.0011]
[1769860439368,13.55326854,2639.4,2638.8,0.0011]
[1769860441470,13.55326854,2639.9,2638.8,13.34488345]
[1769860447170,13.83483579,2639.7,2638.8,0.0011]
[1769860447368,13.83483579,2639.5,2639.0,0.0011]
[1769860448771,13.83483579,2639.5,2638.8,0.0011]
[1769860449306,0.01137829,2639.3,2638.8,0.0011]
[1769860449476,13.83483579,2639.2,2638.4,0.794]
[1769860451574,0.01137829,2639.3,2638.4,14.01462885]
[1769860451750,13.83483579,2639.5,2638.4,14.01462885]
[1769860451751,13.83483579,2639.5,2638.5,14.62209174]
[1769860452674,13.83483579,2639.5,2638.5,1.40146289]
[1769860452878,13.83483579,2639.5,2638.4,0.794]
[1769860453377,0.01137829,2639.1,2638.4,0.794]
[1769860453580,13.83483579,2639.0,2638.4,0.794]
[1769860454977,13.83483579,2639.2,2638.4,0.794]
[1769860455289,13.83483579,2639.2,2638.4,2.19546289]
[1769860455646,13.83483579,2639.0,2638.4,0.794]
[1769860456163,0.01137829,2639.1,2638.4,0.794]
[1769860456555,13.84621408,2639.1,2638.4,0.794]
[1769860458180,0.01137829,2639.1,2638.4,0.794]
[1769860458988,13.84621408,2639.1,2638.4,0.794]
[1769860459165,13.84621408,2639.1,2638.4,2.19546289]
[1769860459481,0.01137829,2639.1,2638.6,0.0011]
[1769860462259,13.83483579,2639.3,2638.6,0.0011]
[1769860472190,13.83583579,2639.7,2638.6,13.22172885]
[1769860472379,0.001,2639.7,2638.9,13.22062885]
[1769860472588,0.001,2639.1,2639.0,14.54280174]
[1769860473101,0.001,2639.7,2639.0,14.54280174]
[1769860480117,0.001,2639.7,2639.0,5.19217289]
[1769860480301,0.001,2639.7,2639.1,12.64621613]
[1769860480786,0.11377829,2640.6,2639.1,12.64621613]
[1769860480787,13.74778592,2640.6,2639.3,12.64621613]
[1769860481700,13.73640763,2640.6,2639.3,12.64621613]
[1769860483895,0.1024,2641.1,2639.3,12.64621613]
[1769860484097,0.1024,2641.1,2639.5,12.64621613]
[1769860484098,13.74778592,2640.8,2639.5,12.64621613]
[1769860485385,0.001,2640.4,2639.5,12.64621613]
[1769860486003,0.001,2640.4,2639.6,12.64621613]
[1769860486201,0.001,2640.4,2639.8,12.64621613]
[1769860486700,13.54959851,2640.9,2639.9,12.64621613]
[1769860486999,13.54959851,2640.9,2640.0,14.29783774]
[1769860487302,4.01137829,2642.6,2640.8,12.64621613]
[1769860487303,13.73640763,2641.9,2640.8,12.64621613]
[1769860487502,13.73640763,2641.9,2640.2,12.64621613]
[1769860488171,13.73640763,2641.9,2640.7,12.64621613]
[1769860488511,13.73640763,2642.1,2640.9,12.64621613]
[1769860488697,13.73640763,2642.1,2640.8,1.3592948]
[1769860488698,13.73640763,2642.1,2641.1,12.64621613]
[1769860489002,13.73740763,2642.0,2641.1,12.64621613]
[1769860491206,0.001,2642.0,2641.1,12.64621613]
[1769860491399,13.73740763,2642.0,2641.1,12.64621613]
[1769860491600,13.73740763,2642.0,2641.2,1.34402161]
[1769860494205,13.73740763,2642.0,2641.0,0.794]
[1769860497016,13.73740763,2642.0,2641.2,0.0011]
[1769860497415,13.73640763,2641.7,2641.2,0.0011]
[1769860497801,0.001,2641.8,2641.2,0.0011]
[1769860498110,13.73740763,2641.8,2641.2,0.0011]
[1769860502422,13.73740763,2641.8,2640.3,17.31021613]
[1769860502619,13.73740763,2641.8,2640.3,13.44021613]
[1769860504019,13.73740763,2641.8,2640.3,0.794]
[1769860505839,13.73640763,2641.6,2640.3,0.794]
[1769860508098,0.1034,2641.8,2640.3,0.794]
[1769860508099,13.8762071,2641.8,2640.3,14.06431266]
[1769860508295,13.8752071,2641.7,2640.5,13.27031266]
[1769860509821,0.001,2641.8,2640.5,13.27031266]
[1769860510202,0.001,2641.8,2640.5,13.27141266]
[1769860510603,0.001,2641.8,2640.7,13.27031266]
[1769860510604,0.001,2641.6,2640.7,13.27031266]
[1769860511432,13.8762071,2641.6,2640.7,13.27031266]
[1769860511729,13.8762071,2641.6,2640.7,1.71414127]
[1769860512032,13.8762071,2641.6,2640.7,14.98445393]
[1769860512033,0.001,2641.6,2640.7,14.98445393]
[1769860519507,13.8762071,2641.6,2640.6,0.794]
[1769860526743,13.8762071,2641.6,2640.6,14.06431266]
[1769860530225,0.001,2641.6,2640.6,14.06431266]
[1769860535954,0.001,2641.6,2640.8,0.0011]
[1769860536160,0.001,2641.6,2640.9,13.27031266]
[1769860536364,0.001,2641.4,2641.1,13.27031266]
[1769860537665,0.001,2641.4,2641.0,1.32714127]
[1769860539259,0.001,2641.4,2640.9,13.68102624]
[1769860546964,0.001,2641.4,2641.0,13.86806874]
[1769860550585,0.001,2641.4,2641.1,13.86806874]
[1769860550785,0.001,2641.6,2641.1,13.86806874]
[1769860550968,0.001,2641.8,2641.2,13.86806874]
[1769860551283,0.001,2641.8,2641.4,13.86806874]
[1769860551588,0.001,2641.8,2641.3,1.38680687]
[1769860551784,13.52792077,2641.8,2641.3,1.38680687]
[1769860551987,13.52792077,2641.8,2640.9,3.87]
[1769860555384,13.52792077,2641.8,2640.8,13.86916874]
[1769860556890,13.52792077,2641.8,2640.8,0.0011]
[1769860557093,13.52692077,2641.6,2640.8,0.0011]
[1769860558869,13.52692077,2641.6,2640.5,0.0011]
[1769860561484,13.52692077,2641.6,2641.0,0.0011]
[1769860561680,0.001,2641.4,2641.0,0.0011]
[1769860561888,13.52692077,2641.3,2641.0,0.0011]
[1769860562199,14.87970133,2641.3,2641.0,0.0011]
[1769860562565,0.001,2641.4,2641.0,0.0011]
[1769860562868,13.52792077,2641.4,2641.0,0.0011]
[1769860563477,0.001,2641.4,2641.0,0.0011]
[1769860566396,0.001,2641.4,2641.0,13.86916874]
[1769860567774,0.001,2641.4,2641.0,0.0011]
[1769860570407,13.31024485,2641.4,2640.8,0.0011]
[1769860570810,14.64126933,2641.4,2640.8,0.0011]
[1769860575090,0.001,2641.2,2640.8,0.0011]
[1769860577113,0.001,2641.2,2640.8,13.05527944]
[1769860587133,0.001,2641.2,2641.0,0.0011]
[1769860587341,0.001,2641.4,2641.0,13.05527944]
[1769860587509,0.001,2641.4,2641.1,14.35970738]
[1769860587898,0.001,2641.8,2641.2,13.05417944]
[1769860588202,13.30924485,2641.7,2641.1,1.30552794]
[1769860588406,13.30924485,2641.7,2641.0,0.0011]
[1769860588608,0.001,2641.8,2641.0,13.05527944]
[1769860590122,13.31024485,2641.8,2641.0,13.05527944]
[1769860592131,0.001,2641.8,2641.0,13.05527944]
[1769860592332,0.001,2641.8,2641.1,14.35970738]
[1769860595638,0.001,2641.8,2641.3,13.05417944]
[1769860596225,0.001,2641.8,2641.5,13.05417944]
[1769860598634,0.001,2642.0,2641.5,13.98566472]
[1769860599935,0.001,2641.6,2641.5,13.98566472]
[1769860600133,0.001,2642.0,2641.6,12.60210158]
[1769860600325,0.001,2642.0,2641.7,16.47210158]
[1769860600522,0.001,2642.0,2641.8,12.60210158]
[1769860601138,0.001,2642.0,2641.4,0.794]
[1769860601139,0.001,2642.4,2641.9,12.60210158]
[1769860601319,0.001,2642.6,2642.0,12.60210158]
[1769860606546,0.11886153,2643.1,2641.8,12.60210158]
[1769860606845,0.11886153,2643.1,2642.1,12.60210158]
[1769860610143,12.86708393,2643.1,2642.1,12.60210158]
[1769860610439,12.86708393,2643.1,2642.2,1.26021016]
[1769860610641,12.86708393,2643.1,2642.1,13.39510158]
[1769860611223,0.001,2642.9,2642.1,13.39510158]
[1769860611545,12.7492224,2642.9,2642.1,0.793]
[1769860611732,12.7492224,2642.9,2641.7,3.87]
[1769860611916,14.03603079,2642.9,2641.8,1.23610424]
[1769860612115,14.03603079,2642.9,2641.8,0.793]
[1769860616053,12.7492224,2642.9,2641.8,13.39510158]
[1769860617451,12.7492224,2642.9,2641.8,0.793]
[1769860623468,12.7492224,2642.9,2642.0,0.0011]
[1769860625868,12.7482224,2642.7,2641.3,3.87]
[1769860626040,12.7482224,2642.5,2641.3,3.87]
[1769860626236,12.7482224,2642.5,2641.1,12.60210158]
[1769860626758,12.7492224,2642.9,2641.4,12.60210158]
[1769860627766,12.7492224,2642.9,2641.5,13.88193464]
[1769860627971,12.7492224,2642.9,2641.7,13.88193464]
[1769860628842,0.001,2642.9,2641.7,13.88193464]
[1769860629968,0.001,2642.9,2641.9,13.88193464]
[1769860630869,0.001,2642.9,2642.0,13.88193464]
[1769860631073,0.001,2642.9,2642.2,13.88193464]
[1769860631387,0.001,2642.9,2642.4,13.88193464]
[1769860631683,12.75573724,2643.5,2642.5,13.88193464]
[1769860632833,13.05272104,2643.7,2642.5,13.88193464]
[1769860635271,0.2969838,2643.7,2642.7,13.88193464]
[1769860635441,0.2969838,2643.7,2642.9,13.88193464]
[1769860636172,0.001,2643.5,2642.9,13.88193464]
[1769860636673,0.001,2643.5,2642.8,1.41155049]
[1769860636870,0.001,2643.5,2642.5,13.88193464]
[1769860637041,12.75673724,2643.5,2642.5,13.88193464]
[1769860638058,12.75673724,2643.5,2642.2,13.88193464]
[1769860640175,0.001,2643.5,2642.3,13.88193464]
[1769860640351,12.75673724,2643.5,2642.3,13.88193464]
[1769860640556,12.75673724,2643.5,2642.5,13.88193464]
[1769860644181,0.001,2643.5,2642.5,13.88193464]
[1769860645275,12.75673724,2643.5,2642.5,13.88193464]
[1769860648180,12.75673724,2643.5,2642.7,0.0011]
[1769860648563,12.75673724,2643.3,2642.7,0.0011]
[1769860650258,0.001,2643.3,2642.7,0.0011]
[1769860650464,0.001,2643.3,2642.7,15.2713381]
[1769860651185,0.001,2643.3,2642.7,2.18240346]
[1769860651884,12.75673724,2643.3,2642.7,0.0011]
[1769860652058,12.75673724,2643.3,2642.1,13.88193464]
[1769860653170,12.75673724,2643.3,2642.2,3.87]
[1769860654455,12.75673724,2643.3,2642.0,0.793]
[1769860654654,12.75573724,2643.1,2642.0,0.793]
[1769860656698,12.75573724,2643.1,2642.0,14.67493464]
[1769860656865,0.001,2643.3,2642.0,14.67493464]
[1769860656866,13.57761584,2643.3,2642.0,14.67493464]
[1769860660198,13.57761584,2643.3,2642.0,0.793]
[1769860661276,13.57761584,2643.3,2642.2,0.0011]
[1769860661472,12.7986157,2643.1,2642.2,0.0011]
[1769860661801,12.7996157,2643.1,2642.2,0.0011]
[1769860663973,12.7996157,2643.1,2642.2,13.72189014]
[1769860663974,0.001,2643.1,2642.2,13.72189014]
[1769860664284,0.001,2643.1,2642.3,13.72079014]
[1769860664672,0.001,2643.1,2642.4,3.87]
[1769860664879,0.001,2643.1,2642.5,0.387]
[1769860665879,0.001,2643.1,2642.5,14.10779014]
[1769860670605,0.001,2643.1,2642.5,17.97779014]
[1769860671920,0.001,2643.1,2642.6,13.72079014]
[1769860673389,0.001,2643.1,2642.8,13.72079014]
[1769860673590,0.001,2643.1,2642.7,3.87]
[1769860674785,0.001,2643.1,2642.7,3.8711]
[1769860674988,0.001,2642.9,2642.7,3.8711]
[1769860675294,0.001,2642.9,2642.7,0.0011]
[1769860675618,0.001,2642.9,2642.7,1.84155901]
[1769860676413,0.001,2643.1,2642.7,1.84155901]
[1769860684104,0.001,2643.1,2642.7,15.56234915]
[1769860685323,0.001,2643.1,2642.7,1.84155901]
[1769860686892,0.001,2643.1,2642.7,15.76855036]
[1769860687093,0.001,2643.1,2642.8,2.00642504]
[1769860687325,0.001,2643.1,2642.8,15.93341639]
[1769860688095,0.001,2642.9,2642.8,15.93341639]
[1769860690128,0.001,2642.9,2642.8,2.00642504]
[1769860690328,0.001,2642.9,2642.7,0.0011]
[1769860692938,0.001,2642.9,2642.7,13.92809135]
[1769860695643,0.001,2643.1,2642.7,0.0011]
[1769860700318,13.57541759,2643.1,2642.5,0.0011]
[1769860701335,13.57541759,2643.1,2642.9,0.0011]
[1769860701522,14.93305935,2643.1,2642.9,0.0011]
[1769860702217,14.93305935,2643.1,2642.2,13.92809135]
[1769860702218,14.93305935,2643.1,2642.2,0.0011]
[1769860702842,14.93305935,2643.1,2642.2,13.92809135]
[1769860703044,0.001,2643.1,2642.2,13.92809135]
[1769860704656,13.57541759,2643.1,2642.2,0.0011]
[1769860707161,13.57541759,2643.1,2642.0,3.8711]
[1769860707351,13.57541759,2643.1,2642.0,0.0011]
[1769860708963,13.57441759,2642.9,2642.0,0.0011]
[1769860709123,13.57441759,2642.7,2641.7,0.793]
[1769860712330,13.57441759,2643.0,2641.7,14.71999135]
[1769860713742,13.57441759,2643.0,2641.7,0.793]
[1769860714770,13.57441759,2643.0,2641.9,0.0011]
[1769860715080,0.001,2642.9,2641.9,0.0011]
[1769860715238,13.57441759,2642.8,2641.9,0.0011]
[1769860721571,13.57441759,2642.8,2641.9,13.76156774]
[1769860725742,13.57441759,2642.8,2641.9,0.0011]
[1769860726780,12.90071449,2642.5,2641.9,0.0011]
[1769860731175,12.90071449,2642.5,2641.7,0.793]
[1769860731355,12.90071449,2642.3,2641.7,0.793]
[1769860731975,12.90071449,2642.3,2641.6,0.0011]
[1769860732185,12.90071449,2642.3,2641.5,0.0011]
[1769860735374,12.90071449,2642.3,2641.3,0.0011]
[1769860735589,12.90071449,2642.3,2641.0,0.0011]
[1769860735590,12.90071449,2642.1,2641.0,0.0011]
[1769860735889,1.79312842,2642.4,2640.8,0.0011]
[1769860735890,12.90071449,2641.9,2640.8,0.0011]
[1769860736789,0.1024,2642.4,2640.8,13.76156774]
[1769860736790,12.90071449,2642.3,2640.8,13.76156774]
[1769860738889,12.90171449,2642.3,2640.8,13.76156774]
[1769860740992,0.001,2642.3,2641.2,13.76046774]
[1769860741295,0.001,2642.3,2641.4,13.76046774]
[1769860742077,12.90171449,2642.3,2641.0,13.76046774]
[1769860744492,0.001,2642.3,2641.1,13.76046774]
[1769860747587,13.68248635,2642.3,2641.1,13.76046774]
[1769860748408,0.001,2642.3,2641.1,13.76046774]
[1769860748616,0.001,2642.3,2641.3,13.67043192]
[1769860749193,13.68248635,2642.3,2641.2,1.76304677]
[1769860749573,13.68248635,2642.3,2641.2,13.67043192]
[1769860749772,13.68248635,2642.3,2641.2,17.54043192]
[1769860750685,13.68248635,2642.3,2641.3,13.67043192]
[1769860750995,0.001,2642.1,2641.3,13.67043192]
[1769860757198,0.001,2642.3,2641.5,13.67043192]
[1769860757396,0.001,2642.3,2641.7,13.67043192]
[1769860757580,0.001,2642.3,2641.8,13.67043192]
[1769860758175,13.68248635,2642.3,2641.7,3.87]
[1769860760307,0.001,2642.3,2641.7,3.87]
[1769860760509,0.001,2642.3,2641.7,17.54043192]
[1769860760876,0.001,2642.3,2641.8,1.75404319]
[1769860763106,0.001,2642.1,2641.8,1.75404319]
[1769860763482,0.001,2642.1,2641.8,15.42447511]
[1769860768902,0.001,2642.9,2642.1,13.67043192]
[1769860773409,13.68248635,2642.9,2641.9,3.87]
[1769860773603,13.68248635,2642.9,2642.0,0.56240432]
[1769860773822,13.68248635,2642.9,2642.0,14.23283624]
[1769860774732,13.68248635,2642.9,2642.0,14.23393624]
[1769860775242,0.001,2642.7,2642.0,14.23393624]
[1769860775904,13.68248635,2642.7,2642.0,0.56350432]
[1769860776339,15.05083498,2642.7,2642.0,0.0011]
[1769860778308,13.68248635,2642.7,2642.0,0.0011]
[1769860781538,12.93485763,2642.7,2642.0,0.0011]
[1769860784445,0.001,2642.7,2642.0,13.30785996]
[1769860786733,0.001,2642.7,2642.2,13.30785996]
[1769860791654,0.001,2642.7,2642.2,0.0011]
[1769860793848,14.22844339,2642.7,2642.2,0.0011]
[1769860798658,14.22844339,2642.7,2642.4,0.0011]
[1769860801764,14.22844339,2642.7,2642.0,0.0011]
[1769860802132,14.22844339,2642.7,2641.8,0.0011]
[1769860802964,14.22844339,2642.7,2641.3,3.87]
[1769860803151,12.93385763,2642.5,2641.2,0.794]
[1769860803353,12.93385763,2642.3,2641.2,0.794]
[1769860804133,12.93385763,2642.3,2641.2,14.10075996]
[1769860804979,12.93385763,2642.1,2641.2,0.794]
[1769860805143,12.93385763,2641.9,2641.2,0.794]
[1769860807066,12.93385763,2641.9,2641.1,0.0011]
[1769860808666,12.93385763,2641.9,2640.9,0.0011]
[1769860810569,12.93385763,2641.9,2640.9,12.82031202]
[1769860810967,12.93385763,2641.9,2640.9,0.0011]
[1769860811173,12.75130491,2641.7,2640.9,0.0011]
[1769860811564,12.75130491,2641.7,2641.1,0.0011]
[1769860811872,12.75230491,2641.7,2641.1,0.0011]
[1769860818154,0.001,2641.7,2641.1,0.0011]
[1769860818559,0.001,2641.7,2641.1,12.82031202]
[1769860818857,0.001,2641.7,2641.2,14.10124322]
[1769860819448,0.001,2641.7,2641.2,1.2820312]
[1769860819664,0.001,2641.7,2641.1,0.0011]
[1769860819879,0.001,2641.7,2641.1,12.82031202]
[1769860820255,12.75130491,2642.6,2641.2,12.81921202]
[1769860820461,12.75130491,2642.5,2641.2,12.81921202]
[1769860820662,14.0264354,2642.4,2641.4,12.81921202]
[1769860820868,12.75130491,2642.4,2641.4,12.81921202]
[1769860821074,0.001,2642.9,2641.4,12.81921202]
[1769860821075,12.75130491,2642.6,2641.4,12.81921202]
[1769860821272,14.0265354,2642.6,2641.5,1.2819212]
[1769860821577,12.75130491,2642.4,2641.2,3.87]
[1769860821781,12.75130491,2642.4,2641.1,0.0011]
[1769860823873,12.75130491,2642.1,2641.1,0.0011]
[1769860824093,14.0265354,2642.0,2641.1,12.82031202]
[1769860824278,12.75130491,2642.0,2641.1,12.82031202]
[1769860824727,12.75230491,2642.2,2641.1,12.82031202]
[1769860828196,12.75230491,2642.2,2641.1,0.0011]
[1769860830795,12.75130491,2642.0,2641.1,0.0011]
[1769860831008,12.75130491,2641.8,2641.1,0.0011]
[1769860831304,12.75130491,2642.0,2641.1,12.82031202]
[1769860831593,12.75230491,2642.2,2641.1,12.82031202]
[1769860831885,14.0265354,2642.1,2641.1,14.48945322]
[1769860832099,1.27523049,2642.1,2641.1,14.48945322]
[1769860832264,0.001,2642.2,2641.1,14.48945322]
[1769860833161,12.75230491,2642.2,2641.1,14.48945322]
[1769860834201,12.75230491,2642.2,2641.1,0.0011]
[1769860835275,12.75230491,2642.2,2641.3,0.0011]
[1769860835789,0.1024,2642.1,2641.3,0.0011]
[1769860835997,12.75130491,2642.0,2641.3,0.0011]
[1769860842097,0.001,2642.2,2641.3,13.31186454]
[1769860842800,0.001,2642.2,2641.3,14.64316099]
[1769860843603,0.001,2642.7,2641.5,13.31076454]
[1769860843806,0.001,2642.7,2641.5,14.10476454]
[1769860845111,13.24327413,2642.7,2641.5,14.10476454]
[1769860846212,0.001,2642.7,2641.5,14.10476454]
[1769860846413,0.001,2642.7,2641.7,13.31076454]
[1769860846913,13.24227413,2642.6,2641.7,13.31076454]
[1769860847678,0.001,2642.5,2641.7,13.31076454]
[1769860848987,0.001,2642.5,2641.5,0.7951]
[1769860848988,13.24327413,2642.5,2641.5,0.7951]
[1769860849405,13.24327413,2642.5,2641.5,0.0011]
[1769860849780,13.24227413,2642.3,2641.5,0.0011]
[1769860851993,1.32432741,2642.4,2641.5,13.31186454]
[1769860852194,0.001,2642.5,2641.5,13.31186454]
[1769860853119,13.24327413,2642.5,2641.5,13.31186454]
[1769860853981,13.24327413,2642.5,2641.5,0.0011]
[1769860855411,13.24327413,2642.5,2641.5,13.31186454]
[1769860856614,13.24327413,2642.5,2641.5,0.0011]